bitfinex-derivatives/quotes_SOLF0:USTF0_20250409
["timestamp","ask_amount","ask_price","bid_price","bid_amount"]
[1744182920434,52.7665,107.41,107.32,4.01645702]
[1744182920634,53.17807541,107.4,107.3,4.4699]
[1744182920835,53.17807541,107.38,107.29,153.1867427]
[1744182921035,53.23775852,107.36,107.29,153.1867427]
[1744182921235,53.17807541,107.34,107.29,153.1867427]
[1744182921541,52.6096,107.33,107.29,153.1867427]
[1744182922332,0.06418472,107.32,107.3,0.06975294]
[1744182922735,0.06418472,107.32,107.31,9.3251]
[1744182922933,0.06418472,107.32,107.3,0.06975294]
[1744182927035,0.06418472,107.32,107.3,9.39535294]
[1744182928240,0.06418472,107.32,107.3,0.06975294]
[1744182929443,0.06418472,107.32,107.3,9.39555294]
[1744182929936,54.79973481,107.4,107.3,0.06975294]
[1744182930138,53.17807541,107.43,107.31,59.66323461]
[1744182930450,53.17807541,107.39,107.31,1.8637592]
[1744182930737,61.8807,107.38,107.31,1.8637592]
[1744182930937,61.8807,107.38,107.27,101.27807541]
[1744182931139,0.06932721,107.36,107.33,0.07137498]
[1744182931534,0.06604525,107.36,107.33,0.07137498]
[1744182933235,48.16604525,107.36,107.33,0.07137498]
[1744182933538,48.16604525,107.36,107.28,62.0]
[1744182933739,48.1,107.36,107.28,62.0]
[1744182934042,9.3216,107.35,107.3,9.3258]
[1744182934342,57.421,107.36,107.31,9.3249]
[1744182934546,0.06244109,107.34,107.31,9.39054609]
[1744182935144,0.06244109,107.34,107.32,9.3241]
[1744182935345,0.06244109,107.34,107.31,0.06564609]
[1744182937138,0.06244109,107.34,107.33,9.3233]
[1744182937445,13.7807,107.38,107.32,53.17807541]
[1744182937639,13.7807,107.38,107.35,9.3216]
[1744182937942,13.7807,107.38,107.32,53.17807541]
[1744182938148,48.1,107.4,107.32,53.17807541]
[1744182938339,48.1,107.4,107.34,53.17807541]
[1744182938536,0.06723995,107.37,107.35,0.06379944]
[1744182939238,9.38763995,107.37,107.35,0.06379944]
[1744182939642,48.1,107.36,107.35,0.06379944]
[1744182939851,48.1,107.36,107.3,53.17807541]
[1744182940041,52.6605,107.39,107.3,53.17807541]
[1744182940350,52.6605,107.39,107.34,53.17807541]
[1744182940553,52.6408,107.42,107.34,53.17807541]
[1744182940848,0.06393778,107.39,107.37,0.06757077]
[1744182941243,9.319,107.38,107.37,0.06757077]
[1744182941438,48.02,107.38,107.31,53.17807541]
[1744182941638,48.02,107.38,107.29,105.93307541]
[1744182941839,9.3203,107.37,107.32,9.3237]
[1744182942038,48.02,107.38,107.31,53.17807541]
[1744182942244,48.02,107.38,107.32,53.17807541]
[1744182942653,0.07050597,107.36,107.34,0.06314749]
[1744182943042,0.07050597,107.36,107.34,9.38564749]
[1744182943247,0.07050597,107.36,107.34,0.06314749]
[1744182944851,4.80960597,107.36,107.34,0.06314749]
[1744182945051,9.28730597,107.36,107.34,0.06314749]
[1744182945451,9.3216,107.35,107.34,0.06314749]
[1744182946152,9.3225,107.34,107.28,57.70357541]
[1744182946351,9.2168,107.36,107.26,105.96657541]
[1744182946546,9.2168,107.36,107.29,9.3261]
[1744182946855,9.3232,107.34,107.26,105.96657541]
[1744182947051,9.3232,107.34,107.3,9.3253]
[1744182947447,0.06793899,107.33,107.31,0.06206957]
[1744182947641,57.41133899,107.33,107.31,0.06206957]
[1744182947854,48.08793899,107.33,107.26,53.17807541]
[1744182948047,9.3254,107.31,107.25,4.6214]
[1744182948247,48.02,107.33,107.26,9.3289]
[1744182948449,101.19807541,107.33,107.22,57.86687541]
[1744182948755,101.19807541,107.33,107.22,53.17807541]
[1744182949054,0.06429703,107.29,107.26,0.07106669]
[1744182949354,48.02,107.28,107.18,62.44657541]
[1744182949748,9.3301,107.26,107.18,62.44657541]
[1744182950048,48.02,107.28,107.2,53.17807541]
[1744182950556,0.0593291,107.25,107.23,9.3947908]
[1744182950856,0.0593291,107.25,107.23,0.0631908]
[1744182951048,0.0593291,107.25,107.24,9.3312]
[1744182951448,4.5067,107.3,107.28,9.3275]
[1744182951653,48.04,107.33,107.28,9.3275]
[1744182952353,48.04,107.33,107.28,53.17807541]
[1744182952649,153.47237933,107.35,107.28,53.17807541]
[1744182952849,0.07118128,107.32,107.29,9.52191013]
[1744182953252,0.07118128,107.32,107.29,0.05991013]
[1744182953750,0.07118128,107.32,107.29,9.38641013]
[1744182953958,0.07118128,107.32,107.29,0.05991013]
[1744182954355,9.39588128,107.32,107.29,0.05991013]
[1744182954759,0.07118128,107.32,107.29,9.38661013]
[1744182955259,0.07118128,107.32,107.29,0.05991013]
[1744182956666,48.11118128,107.32,107.29,0.05991013]
[1744182956864,13.613,107.31,107.23,53.17807541]
[1744182957057,9.3264,107.3,107.25,9.3298]
[1744182957871,13.613,107.31,107.23,53.17807541]
[1744182958065,5.329e-05,107.29,107.27,53.17807541]
[1744182958365,61.7867,107.35,107.31,9.3249]
[1744182958761,52.4646,107.35,107.27,53.17807541]
[1744182958973,61.7866,107.35,107.31,9.3245]
[1744182959390,0.06782264,107.34,107.32,0.05981121]
[1744182960773,0.06782264,107.34,107.28,9.3273]
[1744182960972,52.4646,107.35,107.24,32.83533601]
[1744182961163,52.4646,107.35,107.28,9.3272]
[1744182961361,52.4646,107.35,107.24,32.83533601]
[1744182961556,52.4646,107.35,107.25,4.0119675]
[1744182961768,0.06220421,107.31,107.29,0.0643577]
[1744182961967,48.10220421,107.31,107.29,0.0643577]
[1744182962162,4.5182,107.3,107.22,9.1433]
[1744182962363,4.5182,107.3,107.23,4.02260373]
[1744182962564,4.5182,107.3,107.22,41.97863601]
[1744182962765,4.5182,107.3,107.23,4.0240481]
[1744182962964,4.5182,107.3,107.22,9.1433]
[1744182963161,0.06648974,107.27,107.24,9.3308]
[1744182963364,0.06648974,107.27,107.22,9.1433]
[1744182963570,0.06648974,107.27,107.23,4.03034799]
[1744182963767,9.3296,107.26,107.23,9.3315]
[1744182963973,9.3296,107.26,107.2,80.87533601]
[1744182964170,9.3296,107.26,107.22,9.3321]
[1744182964470,0.06897934,107.24,107.2,48.04]
[1744182964672,7.934e-05,107.24,107.21,4.03728308]
[1744182964972,540.22,107.33,107.22,36.87261909]
[1744182965179,51.57775613,107.32,107.27,9.3281]
[1744182965379,51.57775613,107.32,107.24,32.85196773]
[1744182965579,9.3256,107.31,107.25,4.03539922]
[1744182965782,51.57775613,107.32,107.26,4.03539922]
[1744182965981,0.0684199,107.29,107.27,0.06198679]
[1744182966279,9.3277,107.28,107.27,0.06198679]
[1744182966467,48.1284199,107.29,107.27,0.06198679]
[1744182966673,9.3277,107.28,107.27,0.06198679]
[1744182967881,9.3299,107.26,107.22,9.3325]
[1744182968077,9.1228,107.28,107.23,4.03866178]
[1744182968386,48.06,107.29,107.26,9.3289]
[1744182968879,48.06,107.29,107.21,55.25321833]
[1744182969077,48.12921335,107.29,107.26,0.02501962]
[1744182969278,48.06,107.29,107.26,0.02501962]
[1744182969477,48.13156416,107.29,107.26,0.02501962]
[1744182969674,0.07156416,107.29,107.26,0.02501962]
[1744182969881,0.07156416,107.29,107.27,4.03189876]
[1744182970078,0.07156416,107.29,107.26,0.02501962]
[1744182970079,0.07156416,107.29,107.28,9.3277]
[1744182970880,0.07156416,107.29,107.28,13.3584554]
[1744182971083,0.07156416,107.29,107.28,4.0307554]
[1744182971285,0.07156416,107.29,107.27,9.3283]
[1744182971474,0.07156416,107.29,107.26,62.02501962]
[1744182971782,0.07156416,107.29,107.26,9.35401962]
[1744182972081,0.07156416,107.29,107.26,0.02501962]
[1744182974784,0.07156416,107.29,107.28,9.3277]
[1744182975578,0.07156416,107.29,107.27,9.3281]
[1744182976083,0.07156416,107.29,107.26,9.35401962]
[1744182976283,0.07156416,107.29,107.26,0.02501962]
[1744182976588,0.07156416,107.29,107.28,9.3277]
[1744182976983,9.39856416,107.29,107.26,0.02501962]
[1744182977285,0.07156416,107.29,107.26,0.02501962]
[1744182978287,0.07156416,107.29,107.28,9.3277]
[1744182979175,0.07156416,107.29,107.27,9.3281]
[1744182979373,0.07156416,107.29,107.26,0.02501962]
[1744182980189,0.07156416,107.29,107.28,9.3277]
[1744182980888,0.07156416,107.29,107.26,0.02501962]
[1744182981984,0.07156416,107.29,107.27,9.3282]
[1744182982496,0.07156416,107.29,107.27,9.3279]
[1744182982693,0.07156416,107.29,107.26,0.02501962]
[1744182982990,0.07156416,107.29,107.28,9.3277]
[1744182983788,0.07156416,107.29,107.26,0.02501962]
[1744182984893,53.45928487,107.29,107.21,1.86549762]
[1744182985086,18.3422,107.28,107.21,1.86549762]
[1744182985292,47.98,107.27,107.23,9.3314]
[1744182985591,61.6928,107.27,107.23,9.3314]
[1744182985899,52.3641,107.27,107.21,1.86549762]
[1744182986190,0.06249382,107.26,107.22,4.04517037]
[1744182986492,0.06249382,107.26,107.24,9.3307]
[1744182986701,0.06249382,107.26,107.21,1.86549762]
[1744182986886,0.06249382,107.26,107.23,9.3319]
[1744182987086,0.06249382,107.26,107.21,1.86549762]
[1744182987291,0.06249382,107.26,107.18,110.58172071]
[1744182987493,52.3641,107.27,107.23,9.3316]
[1744182987692,61.6931,107.27,107.23,9.3316]
[1744182987995,0.05923286,107.26,107.19,32.88006244]
[1744182988197,52.3641,107.27,107.2,4.04720177]
[1744182988390,0.0586729,107.24,107.21,4.04720177]
[1744182988591,0.0586729,107.24,107.19,32.88006244]
[1744182988892,0.0586729,107.24,107.2,4.0488715]
[1744182989094,0.0586729,107.24,107.23,9.332]
[1744182989291,0.0586729,107.24,107.19,32.88006244]
[1744182989501,0.0586729,107.24,107.21,9.3336]
[1744182989693,0.0586729,107.24,107.18,4.4515]
[1744182989891,0.0586729,107.24,107.19,4.04865815]
[1744182990191,0.0586729,107.24,107.23,9.332]
[1744182990883,7.29e-05,107.24,107.23,9.332]
[1744182991085,7.29e-05,107.24,107.23,13.37501412]
[1744182991295,7.29e-05,107.24,107.23,9.332]
[1744182991597,7.29e-05,107.24,107.23,13.37580494]
[1744182992189,7.29e-05,107.24,107.23,13.37624943]
[1744182993293,3.903e-05,107.29,107.28,9.3277]
[1744182993891,4.4583,107.32,107.25,32.88006244]
[1744182994092,38.68335613,107.33,107.27,32.88006244]
[1744182994296,38.68335613,107.33,107.32,9.3242]
[1744182994894,24.27105613,107.33,107.32,9.3242]
[1744182995091,24.27105613,107.33,107.32,13.35722313]
[1744182995999,24.27105613,107.33,107.32,4.03302313]
[1744182996706,0.06211434,107.34,107.31,0.0586729]
[1744182996993,4.64851434,107.34,107.31,0.0586729]
[1744182998102,0.06211434,107.34,107.32,9.3242]
[1744182999104,0.06211434,107.34,107.31,0.0586729]
[1744182999800,0.06211434,107.34,107.32,9.3238]
[1744182999997,0.06211434,107.34,107.31,0.0586729]
[1744183001002,0.06211434,107.34,107.32,9.3238]
[1744183001199,0.06211434,107.34,107.31,0.0586729]
[1744183002203,0.06211434,107.34,107.31,9.3837729]
[1744183003295,0.06211434,107.34,107.32,9.3242]
[1744183003804,0.06211434,107.34,107.31,0.0586729]
[1744183004198,47.88,107.33,107.31,0.0586729]
[1744183004400,4.6479,107.32,107.31,0.0586729]
[1744183004699,4.6479,107.32,107.28,9.3273]
[1744183004998,4.6479,107.32,107.25,6.57010186]
[1744183005209,13.9728,107.32,107.29,9.3264]
[1744183005409,13.9728,107.32,107.25,6.57010186]
[1744183005707,13.9728,107.32,107.26,4.03073467]
[1744183005895,0.05918846,107.3,107.29,9.3268]
[1744183006801,0.05918846,107.3,107.25,6.57010186]
[1744183007102,0.05918846,107.3,107.26,4.03165129]
[1744183007305,0.05918846,107.3,107.28,9.3271]
[1744183008206,0.05918846,107.3,107.29,9.3268]
[1744183009410,0.05918846,107.3,107.25,6.57010186]
[1744183009703,0.05918846,107.3,107.26,4.03498826]
[1744183009897,0.05918846,107.3,107.27,4.03498826]
[1744183010099,0.05918846,107.3,107.25,6.57010186]
[1744183010298,0.05918846,107.3,107.26,4.03538108]
[1744183010506,0.05918846,107.3,107.28,9.3275]
[1744183011005,0.05918846,107.3,107.25,6.57010186]
[1744183011203,0.05918846,107.3,107.28,9.3269]
[1744183011705,0.05918846,107.3,107.25,6.57010186]
[1744183012004,0.05918846,107.3,107.26,4.0355802]
[1744183012203,0.05918846,107.3,107.29,9.3268]
[1744183014701,0.05918846,107.3,107.28,9.3272]
[1744183014908,0.05918846,107.3,107.25,6.57010186]
[1744183015204,0.05918846,107.3,107.29,9.3268]
[1744183020106,0.05918846,107.3,107.28,9.3272]
[1744183020412,0.05918846,107.3,107.25,6.57010186]
[1744183020708,0.05918846,107.3,107.29,9.3268]
[1744183020904,8.846e-05,107.3,107.29,13.36406753]
[1744183021417,8.846e-05,107.3,107.29,9.3268]
[1744183021711,8.846e-05,107.3,107.28,9.3274]
[1744183021907,8.846e-05,107.3,107.28,0.0591]
[1744183022508,8.846e-05,107.3,107.29,9.3268]
[1744183023312,4.6619,107.35,107.28,0.0591]
[1744183023516,4.6619,107.35,107.28,47.88]
[1744183024012,13.9839,107.35,107.32,9.3238]
[1744183024214,4.6619,107.35,107.32,9.3238]
[1744183024409,4.6619,107.35,107.28,47.88]
[1744183024607,9.3234,107.33,107.32,0.05918846]
[1744183026017,9.3248,107.32,107.29,9.3266]
[1744183026211,52.5419,107.35,107.25,87.3301643]
[1744183026415,52.5419,107.35,107.26,4.03594598]
[1744183026615,9.324,107.33,107.27,4.03594598]
[1744183026916,52.5419,107.35,107.28,4.03594598]
[1744183027116,0.0659595,107.31,107.25,87.3301643]
[1744183027309,0.0659595,107.31,107.26,4.035971]
[1744183027513,0.0659595,107.31,107.27,4.035971]
[1744183027709,0.0659595,107.31,107.28,4.035971]
[1744183027913,0.0659595,107.31,107.25,87.3301643]
[1744183028218,5.95e-05,107.31,107.3,9.326]
[1744183028518,5.95e-05,107.31,107.27,32.88006244]
[1744183028723,5.95e-05,107.31,107.3,9.326]
[1744183032026,5.95e-05,107.31,107.3,13.36373269]
[1744183032214,5.95e-05,107.31,107.3,13.36403329]
[1744183032521,5.95e-05,107.31,107.3,13.36962717]
[1744183033017,47.78,107.38,107.36,9.3203]
[1744183033226,155.88804478,107.39,107.36,9.3203]
[1744183033518,165.88424269,107.39,107.29,67.09469791]
[1744183033716,9.3222,107.35,107.3,4.04379159]
[1744183033917,9.3222,107.35,107.31,4.04379159]
[1744183034116,0.06707225,107.34,107.31,9.3905595]
[1744183034322,0.06707225,107.34,107.31,0.0659595]
[1744183034620,0.06707225,107.34,107.33,9.3233]
[1744183035720,0.06707225,107.34,107.31,0.0659595]
[1744183035923,0.06707225,107.34,107.32,4.0514256]
[1744183036124,0.06707225,107.34,107.33,4.0514256]
[1744183036327,0.06707225,107.34,107.33,13.3747256]
[1744183038329,0.06707225,107.34,107.32,9.3238]
[1744183038521,0.06707225,107.34,107.31,0.0659595]
[1744183038927,0.06707225,107.34,107.32,9.3238]
[1744183039228,0.06707225,107.34,107.31,0.0659595]
[1744183039929,4.78037225,107.34,107.31,0.0659595]
[1744183040224,14.10317225,107.34,107.31,0.0659595]
[1744183040625,14.10317225,107.34,107.31,9.3906595]
[1744183040829,9.3234,107.33,107.31,9.3906595]
[1744183041219,23.07297225,107.34,107.31,9.3906595]
[1744183041419,13.74997225,107.34,107.31,0.0659595]
[1744183042224,13.74997225,107.34,107.32,9.3238]
[1744183042420,4.78037225,107.34,107.31,0.0659595]
[1744183042730,4.78037225,107.34,107.32,4.05865186]
[1744183043125,0.06707225,107.34,107.32,4.05865186]
[1744183043431,0.06707225,107.34,107.33,4.05847]
[1744183044933,0.06707225,107.34,107.33,13.38177]
[1744183046124,0.06707225,107.34,107.31,0.0659595]
[1744183046636,9.3237,107.33,107.31,0.0659595]
[1744183047029,0.06707225,107.34,107.31,0.0659595]
[1744183047327,4.6854,107.33,107.31,0.0659595]
[1744183047533,52.4654,107.33,107.31,0.0659595]
[1744183047829,9.3242,107.32,107.29,9.3264]
[1744183048029,52.4654,107.33,107.26,52.534]
[1744183048227,9.3255,107.31,107.28,9.3271]
[1744183048631,9.3246,107.32,107.29,9.3268]
[1744183049039,0.06880534,107.32,107.25,21.17949977]
[1744183049237,61.7892,107.33,107.3,9.3256]
[1744183049735,9.3247,107.32,107.25,21.17949977]
[1744183049942,52.4654,107.33,107.25,21.17949977]
[1744183050237,0.06580759,107.3,107.27,19.31469791]
[1744183050738,0.06580759,107.3,107.29,9.3268]
[1744183051243,0.06580759,107.3,107.29,13.38110106]
[1744183052038,7.59e-06,107.3,107.29,13.38110106]
[1744183052337,7.59e-06,107.3,107.29,32.69579897]
[1744183052535,7.59e-06,107.3,107.29,32.69274262]
[1744183052726,9.3222,107.35,107.29,23.36594262]
[1744183052933,47.78,107.36,107.3,4.05124471]
[1744183053133,47.78,107.36,107.33,9.323]
[1744183053437,57.1011,107.36,107.33,9.323]
[1744183053635,57.1011,107.36,107.32,9.3237]
[1744183053636,47.78,107.36,107.32,9.3237]
[1744183053940,47.84937553,107.36,107.33,0.06413529]
[1744183054140,57.1012,107.36,107.33,0.06413529]
[1744183054438,57.16869616,107.36,107.33,0.06413529]
[1744183055336,0.06749616,107.36,107.33,0.06413529]
[1744183055542,0.06749616,107.36,107.34,4.04867742]
[1744183055741,0.06749616,107.36,107.33,0.06413529]
[1744183055941,0.06749616,107.36,107.34,13.37057196]
[1744183056136,0.06749616,107.36,107.34,9.322]
[1744183057040,0.06749616,107.36,107.33,0.06413529]
[1744183057041,0.06749616,107.36,107.35,9.3216]
[1744183057233,0.06749616,107.36,107.35,13.36881268]
[1744183057534,0.06749616,107.36,107.35,13.36785354]
[1744183058136,0.06749616,107.36,107.35,13.36759146]
[1744183058441,56.29109142,107.42,107.35,80.46068937]
[1744183058745,51.72239142,107.42,107.39,19.31469791]
[1744183058939,51.72239142,107.42,107.37,19.31469791]
[1744183059140,51.72239142,107.42,107.38,4.03860705]
[1744183059340,51.72239142,107.42,107.39,9.3176]
[1744183059538,0.06679541,107.41,107.39,9.38067246]
[1744183060942,0.06679541,107.41,107.4,9.3173]
[1744183061649,9.541e-05,107.41,107.4,9.3173]
[1744183062739,9.541e-05,107.41,107.4,13.34257869]
[1744183062937,9.541e-05,107.41,107.4,9.3173]
[1744183063542,9.541e-05,107.41,107.4,13.34165152]
[1744183063743,9.541e-05,107.41,107.4,9.3173]
[1744183065638,9.541e-05,107.41,107.4,14.0098]
[1744183065835,9.0527,107.47,107.4,4.6925]
[1744183066135,9.0527,107.47,107.41,19.31469791]
[1744183066335,9.0527,107.47,107.44,9.3132]
[1744183066639,9.0527,107.47,107.41,19.31469791]
[1744183066938,0.06254253,107.45,107.43,0.05931272]
[1744183067643,47.70254253,107.45,107.37,66.95469791]
[1744183067844,47.64,107.45,107.37,66.95469791]
[1744183068449,47.64,107.45,107.42,9.3154]
[1744183068854,47.70908548,107.45,107.42,9.38425139]
[1744183069651,47.70908548,107.45,107.42,0.06885139]
[1744183069950,0.06908548,107.45,107.42,0.06885139]
[1744183070353,0.06908548,107.45,107.43,9.3139]
[1744183070549,0.06908548,107.45,107.42,0.06885139]
[1744183070846,0.06908548,107.45,107.43,9.3142]
[1744183071351,0.06908548,107.45,107.42,0.06885139]
[1744183072844,47.62,107.44,107.37,47.64]
[1744183073040,4.3821,107.43,107.36,4.5667]
[1744183073241,9.3157,107.42,107.39,9.3176]
[1744183073447,4.3821,107.43,107.36,4.5667]
[1744183073947,0.06050446,107.41,107.38,0.06794198]
[1744183074354,9.37710446,107.41,107.38,9.38654198]
[1744183074554,0.06050446,107.41,107.38,0.06794198]
[1744183074955,9.37730446,107.41,107.38,9.38654198]
[1744183075348,0.06050446,107.41,107.38,0.06794198]
[1744183076053,9.3177,107.4,107.38,0.06794198]
[1744183076253,0.06050446,107.41,107.38,0.06794198]
[1744183076552,9.3174,107.4,107.38,0.06794198]
[1744183076858,0.06050446,107.41,107.38,0.06794198]
[1744183077244,0.06050446,107.41,107.4,9.3173]
[1744183080757,0.06050446,107.41,107.39,9.3178]
[1744183081059,0.06050446,107.41,107.38,0.06794198]
[1744183082754,18.73085067,107.4,107.31,85.14775067]
[1744183082952,18.73085067,107.38,107.29,68.60375067]
[1744183083256,4.7503,107.37,107.3,4.02644193]
[1744183083458,9.3212,107.36,107.29,68.60375067]
[1744183083760,18.73085067,107.36,107.29,47.64]
[1744183083959,0.06697596,107.34,107.29,47.64]
[1744183084462,9.38987596,107.34,107.31,9.3248]
[1744183084958,0.06697596,107.34,107.31,9.3248]
[1744183085162,0.06697596,107.34,107.29,18.73085067]
[1744183085462,47.64,107.35,107.29,18.73085067]
[1744183085659,0.06529722,107.33,107.29,18.73085067]
[1744183085853,0.06529722,107.33,107.29,80.73085067]
[1744183086054,9.722e-05,107.33,107.31,18.73085067]
[1744183086355,4.7503,107.37,107.31,18.73085067]
[1744183087260,4.7503,107.37,107.29,128.37085067]
[1744183087461,0.06845015,107.35,107.33,0.05929365]
[1744183088255,0.06845015,107.35,107.34,9.3225]
[1744183088454,0.06845015,107.35,107.33,0.05929365]
[1744183088962,0.06845015,107.35,107.34,9.3225]
[1744183090165,5.015e-05,107.35,107.34,9.3225]
[1744183090863,4.3472,107.4,107.39,9.3181]
[1744183091460,47.64,107.41,107.32,18.73085067]
[1744183091663,18.73085067,107.38,107.3,18.73085067]
[1744183091859,4.7111,107.37,107.34,9.3218]
[1744183092066,0.0610051,107.35,107.34,9.3218]
[1744183092560,0.0610051,107.35,107.33,0.07098029]
[1744183092774,0.0610051,107.35,107.33,9.39398029]
[1744183092973,0.0610051,107.35,107.33,0.07098029]
[1744183093465,0.0610051,107.35,107.33,9.39358029]
[1744183093666,0.0610051,107.35,107.33,0.07098029]
[1744183093868,0.0610051,107.35,107.34,9.3225]
[1744183096468,4.3472,107.39,107.34,18.73085067]
[1744183096965,4.3472,107.39,107.38,9.319]
[1744183097169,117.97324209,107.44,107.36,18.73085067]
[1744183097366,75.58245067,107.44,107.36,18.73085067]
[1744183097557,0.07097232,107.41,107.38,0.06683603]
[1744183100373,9.38747232,107.41,107.38,0.06683603]
[1744183100574,0.07097232,107.41,107.38,0.06683603]
[1744183101066,9.38777232,107.41,107.38,0.06683603]
[1744183101377,9.38777232,107.41,107.38,9.38543603]
[1744183102174,0.07097232,107.41,107.38,0.06683603]
[1744183102780,17.60055892,107.46,107.39,22.76562039]
[1744183103078,17.60055892,107.46,107.41,18.73085067]
[1744183103278,17.60055892,107.46,107.45,9.3129]
[1744183103783,12.94915892,107.46,107.41,18.73085067]
[1744183104188,12.94915892,107.46,107.45,28.04375067]
[1744183104480,12.94915892,107.46,107.45,18.73085067]
[1744183104687,12.94915892,107.46,107.44,0.05996442]
[1744183105685,0.06033666,107.47,107.44,0.05996442]
[1744183105891,9.37193666,107.47,107.44,0.05996442]
[1744183106293,0.06033666,107.47,107.44,0.05996442]
[1744183106481,9.3123,107.46,107.44,0.05996442]
[1744183106686,0.06033666,107.47,107.44,0.05996442]
[1744183107195,9.3121,107.46,107.44,0.05996442]
[1744183107388,0.06033666,107.47,107.44,0.05996442]
[1744183107588,9.3129,107.45,107.44,0.05996442]
[1744183108989,9.3151,107.43,107.37,84.1630193]
[1744183109192,9.3151,107.43,107.38,4.02689446]
[1744183109491,9.3152,107.43,107.37,51.9246]
[1744183109691,14.0393,107.46,107.37,81.8649193]
[1744183109994,14.0393,107.46,107.38,4.02835148]
[1744183110294,0.06052012,107.43,107.4,0.06660286]
[1744183110693,0.06052012,107.43,107.41,9.3158]
[1744183110896,0.06052012,107.43,107.4,0.06660286]
[1744183111598,9.37582012,107.43,107.4,0.06660286]
[1744183112196,9.3164,107.41,107.4,0.06660286]
[1744183112597,0.06052012,107.43,107.4,0.06660286]
[1744183113097,47.56052012,107.43,107.4,0.06660286]
[1744183113393,47.56052012,107.43,107.35,4.3609]
[1744183113598,77.4403193,107.43,107.34,52.0165]
[1744183113999,77.4403193,107.43,107.36,9.3203]
[1744183114294,77.4403193,107.43,107.32,4.6035]
[1744183114497,29.9403193,107.41,107.34,9.3223]
[1744183114699,0.07044512,107.39,107.36,0.06835642]
[1744183114897,47.57044512,107.39,107.36,0.06835642]
[1744183115098,56.88904512,107.39,107.36,9.38905642]
[1744183115297,47.57044512,107.39,107.36,0.06835642]
[1744183116695,9.3199,107.37,107.36,0.06835642]
[1744183116897,77.51076442,107.39,107.3,52.0165]
[1744183117100,77.4403193,107.39,107.31,9.3245]
[1744183117599,9.3221,107.35,107.31,9.3245]
[1744183117798,29.9403193,107.37,107.28,4.4405]
[1744183118000,9.3247,107.32,107.28,4.4405]
[1744183118204,0.06562851,107.34,107.31,0.05880266]
[1744183118400,47.52,107.35,107.31,0.05880266]
[1744183118602,9.3239,107.33,107.31,0.05880266]
[1744183119605,0.06723184,107.34,107.31,0.05880266]
[1744183120902,9.39013184,107.34,107.31,0.05880266]
[1744183121100,0.06723184,107.34,107.31,0.05880266]
[1744183121902,47.58723184,107.34,107.31,0.05880266]
[1744183122101,9.3242,107.32,107.31,0.05880266]
[1744183122397,9.3135,107.33,107.28,9.3273]
[1744183122602,4.6659,107.32,107.26,4.7238]
[1744183123007,13.9905,107.32,107.26,4.7238]
[1744183123506,0.06457227,107.3,107.26,4.7238]
[1744183123995,491.94,107.37,107.27,29.9403193]
[1744183124303,56.7394,107.38,107.29,29.9403193]
[1744183124506,66.0588,107.38,107.34,9.3219]
[1744183125006,56.7394,107.38,107.31,62.0]
[1744183125208,0.06366442,107.37,107.35,0.06335984]
[1744183126307,9.38406442,107.37,107.35,0.06335984]
[1744183127106,9.3207,107.36,107.35,0.06335984]
[1744183127405,0.06366442,107.37,107.28,47.52]
[1744183127707,9.3229,107.34,107.28,47.52]
[1744183128100,9.3229,107.34,107.3,9.3254]
[1744183128299,9.3229,107.34,107.28,47.52]
[1744183128504,0.06737145,107.33,107.28,47.52]
[1744183128703,0.06737145,107.33,107.31,9.3248]
[1744183129511,0.06737145,107.33,107.3,9.3255]
[1744183131108,9.39077145,107.33,107.3,9.3255]
[1744183131810,9.39077145,107.33,107.31,9.325]
[1744183132111,0.06737145,107.33,107.31,9.325]
[1744183134114,56.6194,107.38,107.3,47.4]
[1744183134314,56.6194,107.38,107.31,71.2771]
[1744183134612,9.3215,107.36,107.32,9.3238]
[1744183134815,56.6194,107.38,107.32,9.3238]
[1744183135014,9.322,107.35,107.32,9.3238]
[1744183135413,0.0668933,107.35,107.33,9.3233]
[1744183136612,0.0668933,107.35,107.32,0.07124287]
[1744183138014,9.3888933,107.35,107.32,9.39504287]
[1744183138216,0.0668933,107.35,107.32,0.07124287]
[1744183138414,0.0668933,107.35,107.33,9.3233]
[1744183138916,0.0668933,107.35,107.32,9.39514287]
[1744183139316,0.0668933,107.35,107.32,0.07124287]
[1744183140511,0.0668933,107.35,107.33,9.3229]
[1744183140711,0.0668933,107.35,107.32,0.07124287]
[1744183140912,9.3233,107.33,107.32,0.07124287]
[1744183141114,0.0668933,107.35,107.32,0.07124287]
[1744183141517,9.3229,107.34,107.32,0.07124287]
[1744183143227,0.0668933,107.35,107.32,0.07124287]
[1744183143825,47.4,107.34,107.32,0.07124287]
[1744183144015,47.4,107.34,107.27,1.86445418]